fUST/lending_fUST_20250905
["ID","MTS","AMOUNT","RATE_DAILY","PERIOD"]
[383635639,1757052640298,-480.0,0.00013897,2]
[383635641,1757052640309,-894.17,0.00013897,2]
[383635642,1757052640319,-480.0,0.00013897,2]
[383635643,1757052640328,-480.0,0.00013897,2]
[383635644,1757052640339,-543.33,0.00013897,2]
[383635645,1757052640348,-480.0,0.00013897,2]
[383635647,1757052640357,-480.0,0.00013897,2]
[383635649,1757052640367,-480.0,0.00013897,2]
[383635651,1757052640377,-480.0,0.00013897,2]
[383635652,1757052640393,-2420.52,0.00013897,2]
[383635653,1757052640403,-480.0,0.00013897,2]
[383635654,1757052640412,-483.29408813,0.00013897,2]
[383635655,1757052640422,-810.59,0.00013897,2]
[383635656,1757052640431,-480.0,0.00013897,2]
[383635657,1757052640440,-480.0,0.00013897,2]
[383635658,1757052640450,-264.46885906,0.00013897,2]
[383635659,1757052640459,-480.0,0.00013897,2]
[383635660,1757052640469,-2655.15,0.00013897,2]
[383635661,1757052640478,-480.0,0.00013897,2]
[383635662,1757052640488,-480.0,0.00013897,2]
[383635663,1757052640497,-292.9309614,0.00013897,2]
[383635664,1757052640506,-480.0,0.00013897,2]
[383635665,1757052640516,-5800.33,0.00013897,2]
[383635666,1757052640525,-480.0,0.00013897,2]
[383635667,1757052640534,-480.0,0.00013897,2]
[383635668,1757052640544,-1164.67,0.00013897,2]
[383635669,1757052640553,-604.96,0.00013897,2]
[383635670,1757052640562,-780.12,0.00013897,2]
[383635671,1757052640572,-480.0,0.00013897,2]
[383635672,1757052640581,-480.0,0.00013897,2]
[383635673,1757052640591,-480.0,0.00013897,2]
[383635674,1757052640600,-480.0,0.00013897,2]
[383635675,1757052640609,-550.03846207,0.00013897,2]
[383635676,1757052640619,-534.67,0.00013897,2]
[383635677,1757052640628,-480.0,0.00013897,2]
[383635678,1757052640637,-485.48523707,0.00013897,2]
[383635679,1757052640647,-480.0,0.00013897,2]
[383635680,1757052640656,-480.0,0.00013897,2]
[383635681,1757052640665,-480.0,0.00013897,2]
[383635682,1757052640675,-1106.69,0.00013897,2]
[383635683,1757052640685,-480.0,0.00013897,2]
[383635684,1757052640695,-480.0,0.00013897,2]
[383635685,1757052640705,-310.27081167,0.00013897,2]
[383635686,1757052640715,-480.0,0.00013897,2]
[383635687,1757052640724,-1687.35,0.00013897,2]
[383635688,1757052640734,-480.0,0.00013897,2]
[383635689,1757052640743,-480.0,0.00013897,2]
[383635690,1757052640752,-480.0,0.00013897,2]
[383635691,1757052640761,-482.1874246,0.00013897,2]
[383635692,1757052640771,-482.12719272,0.00013897,2]
[383635693,1757052640785,-590.17565658,0.00013897,2]
[383635694,1757052640794,-480.0,0.00013897,2]
[383635695,1757052640804,-480.0,0.00013897,2]
[383635696,1757052640813,-530.21,0.00013897,2]
[383635697,1757052640823,-747.51,0.00013897,2]
[383635698,1757052640833,-480.0,0.00013897,2]
[383635699,1757052640843,-480.0,0.00013897,2]
[383635700,1757052640854,-480.0,0.00013897,2]
[383635701,1757052640864,-480.0,0.00013897,2]
[383635702,1757052640873,-1121.1,0.00013897,2]
[383635703,1757052640883,-1332.62,0.00013897,2]
[383635704,1757052640892,-546.31,0.00013897,2]
[383635705,1757052640901,-240.43166921,0.00013897,2]
[383635706,1757052640912,-481.01915889,0.00013897,2]
[383635707,1757052640922,-480.0,0.00013897,2]
[383635708,1757052640932,-480.0,0.00013897,2]
[383635709,1757052640942,-161.71010483,0.00013897,2]
[383635710,1757052640951,-480.0,0.00013897,2]
[383635711,1757052640960,-480.0,0.00013897,2]
[383635712,1757052640970,-480.0,0.00013897,2]
[383635713,1757052640979,-480.0,0.00013897,2]
[383635714,1757052640988,-480.0,0.00013897,2]
[383635715,1757052640998,-568.82,0.00013897,2]
[383635716,1757052641007,-480.0,0.00013897,2]
[383635717,1757052641017,-482.64233866,0.00013897,2]
[383635718,1757052641026,-480.0,0.00013897,2]
[383635719,1757052641035,-480.0,0.00013897,2]
[383635720,1757052641044,-349.85843455,0.00013898,2]
[383635721,1757052641054,-500.0,0.00013898,2]
[383635722,1757052641064,-500.0,0.00013898,2]
[383635723,1757052641073,-500.0,0.00013898,2]
[383635724,1757052641084,-500.0,0.00013898,2]
[383635725,1757052641094,-500.0,0.00013898,2]
[383635726,1757052641103,-500.0,0.00013898,2]
[383635727,1757052641112,-500.0,0.00013898,2]
[383635728,1757052641122,-500.0,0.00013898,2]
[383635729,1757052641133,-500.0,0.00013898,2]
[383635730,1757052641143,-500.0,0.00013898,2]
[383635731,1757052641152,-500.0,0.00013898,2]
[383635732,1757052641161,-500.0,0.00013898,2]
[383635733,1757052641170,-500.0,0.00013898,2]
[383635734,1757052641180,-500.0,0.00013898,2]
[383635735,1757052641189,-500.0,0.00013898,2]
[383635736,1757052641201,-338.55230787,0.00013898,2]
[383635737,1757052641211,-507.69230769,0.00013898,2]
[383635738,1757052641221,-507.69230769,0.00013898,2]
[383635739,1757052641231,-507.69230769,0.00013898,2]
[383635740,1757052641240,-507.69230769,0.00013898,2]
[383635741,1757052641251,-507.69230769,0.00013898,2]
[383635742,1757052641260,-507.69230769,0.00013898,2]
[383635743,1757052641270,-507.69230769,0.00013898,2]
[383635744,1757052641279,-507.69230769,0.00013898,2]
[383635745,1757052641288,-527.88461539,0.00013898,2]
[383635746,1757052641298,-527.88461539,0.00013898,2]
[383635747,1757052641308,-527.88461539,0.00013898,2]
[383635748,1757052641317,-527.88461539,0.00013898,2]
[383635749,1757052641327,-500.0,0.00013898,2]
[383635750,1757052641336,-500.0,0.00013898,2]
[383635751,1757052641346,-363.1610557,0.00013898,2]
[383635752,1757052641355,-530.21,0.00013898,2]
[383635753,1757052641365,-530.21,0.00013898,2]
[383635754,1757052641375,-530.21,0.00013898,2]
[383635755,1757052641384,-530.21,0.00013898,2]
[383635756,1757052641394,-530.21,0.00013898,2]
[383635757,1757052641404,-530.21,0.00013898,2]
[383635758,1757052641414,-530.21,0.00013898,2]
[383635759,1757052641425,-530.21,0.00013898,2]
[383635760,1757052641434,-530.21,0.00013898,2]
[383635761,1757052641450,-530.21,0.00013898,2]
[383635762,1757052641460,-530.21,0.00013898,2]
[383635763,1757052641470,-530.21,0.00013898,2]
[383635764,1757052641480,-500.0,0.00013898,2]
[383635765,1757052641489,-243521.10832237,0.00013899,2]
[383635766,1757052641498,-697.83821725,0.00013935,2]
[383635767,1757052641508,-501.03182791,0.00013973,2]
[383635768,1757052641517,-224.00413501,0.00013973,2]
[383635769,1757052641527,-501.93049493,0.00013973,2]
[383635770,1757052641537,-500.0,0.00013973,2]
[383635771,1757052641549,-500.0,0.00013973,2]
[383635772,1757052641559,-500.0,0.00013973,2]
[383635773,1757052641568,-273.174221,0.00013973,2]
[383635774,1757052641577,-504.11039704,0.00013973,2]
[383635775,1757052641586,-352.88141392,0.00013973,2]
[383635776,1757052641596,-500.0,0.00013973,2]
[383635777,1757052641606,-500.0,0.00013973,2]
[383635778,1757052641617,-530.21,0.00013996,2]
[383635779,1757052641627,-530.21,0.00013996,2]
[383635780,1757052641636,-238.1905722,0.00013997,2]
[383635781,1757052641648,-480.0,0.00013997,2]
[383635782,1757052641659,-480.0,0.00013997,2]
[383635783,1757052641668,-480.0,0.00013997,2]
[383635784,1757052641678,-480.0,0.00013997,2]
[383635785,1757052641689,-480.0,0.00013997,2]
[383635786,1757052641699,-480.0,0.00013997,2]
[383635787,1757052641709,-480.0,0.00013997,2]
[383635788,1757052641719,-480.0,0.00013997,2]
[383635789,1757052641728,-480.0,0.00013997,2]
[383635790,1757052641739,-480.0,0.00013997,2]
[383635791,1757052641748,-480.0,0.00013997,2]
[383635792,1757052641758,-480.0,0.00013997,2]
[383635793,1757052641768,-480.0,0.00013997,2]
[383635794,1757052641873,-480.0,0.00013997,2]
[383635795,1757052641883,-165.81067714,0.00013997,2]
[383635796,1757052641893,-480.0,0.00013997,2]
[383635797,1757052641903,-480.0,0.00013997,2]
[383635798,1757052641913,-480.0,0.00013997,2]
[383635799,1757052641924,-480.0,0.00013997,2]
[383635800,1757052641934,-466.10529716,0.00013997,2]
[383635801,1757052641944,-480.0,0.00013997,2]
[383635802,1757052641954,-480.0,0.00013997,2]
[383635803,1757052641964,-480.0,0.00013997,2]
[383635804,1757052641974,-480.0,0.00013997,2]
[383635805,1757052641983,-480.0,0.00013997,2]
[383635806,1757052641992,-480.0,0.00013997,2]
[383635807,1757052642001,-480.0,0.00013997,2]
[383635808,1757052642010,-480.0,0.00013997,2]
[383635809,1757052642021,-480.0,0.00013997,2]
[383635810,1757052642032,-480.0,0.00013997,2]
[383635811,1757052642042,-480.0,0.00013997,2]
[383635812,1757052642052,-480.0,0.00013997,2]
[383635813,1757052642062,-480.0,0.00013997,2]
[383635814,1757052642071,-480.0,0.00013997,2]
[383635815,1757052642080,-480.0,0.00013997,2]
[383635816,1757052642089,-480.0,0.00013997,2]
[383635817,1757052642099,-480.0,0.00013997,2]
[383635818,1757052642108,-365.90011165,0.00013997,2]
[383635819,1757052642117,-524.55576849,0.00013997,2]
[383635820,1757052642126,-480.0,0.00013997,2]
[383635821,1757052642135,-480.0,0.00013997,2]
[383635822,1757052642144,-480.0,0.00013997,2]
[383635823,1757052642154,-480.0,0.00013997,2]
[383635824,1757052642163,-480.0,0.00013997,2]
[383635825,1757052642172,-530.21,0.00013997,2]
[383635826,1757052642182,-530.21,0.00013997,2]
[383635827,1757052642191,-530.21,0.00013997,2]
[383635828,1757052642200,-480.0,0.00013998,2]
[383635829,1757052642210,-480.0,0.00013998,2]
[383635830,1757052642219,-480.0,0.00013998,2]
[383635831,1757052642228,-480.0,0.00013998,2]
[383635832,1757052642236,-480.0,0.00013998,2]
[383635833,1757052642245,-480.0,0.00013998,2]
[383635834,1757052642254,-480.0,0.00013998,2]
[383635835,1757052642263,-275.48352916,0.00013998,2]
[383635836,1757052642272,-480.0,0.00013998,2]
[383635837,1757052642282,-480.0,0.00013998,2]
[383635838,1757052642291,-480.0,0.00013998,2]
[383635839,1757052642299,-480.0,0.00013998,2]
[383635840,1757052642308,-602.11,0.00013998,2]
[383635841,1757052642317,-480.0,0.00013998,2]
[383635842,1757052642325,-480.0,0.00013998,2]
[383635843,1757052642334,-480.0,0.00013998,2]
[383635844,1757052642342,-481.10955087,0.00013998,2]
[383635845,1757052642351,-480.0,0.00013998,2]
[383635846,1757052642359,-480.0,0.00013998,2]
[383635847,1757052642368,-480.0,0.00013998,2]
[383635848,1757052642376,-482.0581573,0.00013998,2]
[383635849,1757052642385,-480.0,0.00013998,2]
[383635850,1757052642394,-366.12977554,0.00013998,2]
[383635851,1757052642402,-480.0,0.00013998,2]
[383635852,1757052642411,-394.25156681,0.00013998,2]
[383635853,1757052642419,-480.0,0.00013998,2]
[383635854,1757052642428,-480.0,0.00013998,2]
[383635855,1757052642438,-482.5152393,0.00013998,2]
[383635856,1757052642447,-480.0,0.00013998,2]
[383635857,1757052642457,-240.91285836,0.00013998,2]
[383635858,1757052642466,-480.0,0.00013998,2]
[383635859,1757052642476,-579.15659177,0.00013998,2]
[383635860,1757052642485,-480.0,0.00013998,2]
[383635861,1757052642494,-482.01486142,0.00013998,2]
[383635862,1757052642503,-480.0,0.00013998,2]
[383635863,1757052642513,-480.0,0.00013998,2]
[383635864,1757052642523,-480.0,0.00013998,2]
[383635865,1757052642532,-520.63,0.00013998,2]
[383635866,1757052642541,-480.0,0.00013998,2]
[383635867,1757052642551,-480.0,0.00013998,2]
[383635868,1757052642560,-481.59509083,0.00013998,2]
[383635869,1757052642570,-480.0,0.00013998,2]
[383635870,1757052642580,-482.9327179,0.00013998,2]
[383635871,1757052642589,-480.0,0.00013998,2]
[383635872,1757052642599,-480.0,0.00013998,2]
[383635873,1757052642608,-480.0,0.00013998,2]
[383635874,1757052642617,-480.0,0.00013998,2]
[383635875,1757052642627,-409.18584205,0.00013998,2]
[383635876,1757052642636,-480.0,0.00013998,2]
[383635877,1757052642645,-480.83529314,0.00013998,2]
[383635878,1757052642655,-480.0,0.00013998,2]
[383635879,1757052642664,-480.0,0.00013998,2]
[383635880,1757052642673,-400.69404245,0.00013998,2]
[383635881,1757052642683,-480.83753717,0.00013998,2]
[383635882,1757052642692,-480.0,0.00013998,2]
[383635883,1757052642701,-481.30862865,0.00013998,2]
[383635884,1757052642711,-480.0,0.00013998,2]
[383635885,1757052642719,-481.54305315,0.00013998,2]
[383635886,1757052642729,-480.0,0.00013998,2]
[383635887,1757052642738,-481.11406537,0.00013998,2]
[383635888,1757052642748,-480.0,0.00013998,2]
[383635889,1757052642757,-480.0,0.00013998,2]
[383635890,1757052642766,-480.0,0.00013998,2]
[383635891,1757052642777,-474.0,0.00013998,2]
[383635892,1757052642789,-480.0,0.00013998,2]
[383635893,1757052642803,-481.1770855,0.00013998,2]
[383635894,1757052642818,-481.02814707,0.00013998,2]
[383635895,1757052642833,-482.48355005,0.00013998,2]
[383635896,1757052642846,-484.46258003,0.00013998,2]
[383635897,1757052642858,-480.0,0.00013998,2]
[383635898,1757052642872,-481.80064889,0.00013998,2]
[383635899,1757052642885,-480.0,0.00013998,2]
[383635900,1757052642900,-481.91891233,0.00013998,2]
[383635901,1757052642916,-480.0,0.00013998,2]
[383635902,1757052642928,-482.48670952,0.00013998,2]
[383635903,1757052642943,-482.59916147,0.00013998,2]
[383635904,1757052642957,-480.0,0.00013998,2]
[383635905,1757052642969,-480.0,0.00013998,2]
[383635906,1757052642982,-480.0,0.00013998,2]
[383635907,1757052642994,-481.11108741,0.00013998,2]
[383635908,1757052643007,-583.52992489,0.00013998,2]
[383635909,1757052643021,-480.0,0.00013998,2]
[383635910,1757052643034,-578.05,0.00013998,2]
[383635911,1757052643046,-509.40084903,0.00013998,2]
[383635912,1757052643057,-480.0,0.00013998,2]
[383635913,1757052643067,-589.94,0.00013998,2]
[383635914,1757052643081,-559.3473552,0.00013998,2]
[383635915,1757052643094,-480.0,0.00013998,2]
[383635916,1757052643107,-181.690791,0.00013998,2]
[383635917,1757052643120,-151.0,0.00013998,2]
[383635918,1757052643133,-151.0,0.00013998,2]
[383635919,1757052643147,-151.0,0.00013998,2]
[383635920,1757052643160,-151.0,0.00013998,2]
[383635921,1757052643174,-560.494188,0.00013998,2]
[383635922,1757052643185,-560.494188,0.00013998,2]
[383635923,1757052643196,-560.494188,0.00013998,2]
[383635924,1757052643206,-560.494188,0.00013998,2]
[383635925,1757052643218,-151.0,0.00013998,2]
[383635926,1757052643232,-151.0,0.00013998,2]
[383635927,1757052643246,-152.650816,0.00013998,2]
[383635928,1757052643259,-151.0,0.00013998,2]
[383635929,1757052643270,-151.0,0.00013998,2]
[383635930,1757052643281,-151.0,0.00013998,2]
[383635931,1757052643294,-151.0,0.00013998,2]
[383635932,1757052643306,-151.0,0.00013998,2]
[383635933,1757052643317,-151.0,0.00013998,2]
[383635934,1757052643328,-530.21,0.00013998,2]
[383635935,1757052643341,-482.02423246,0.00013999,2]
[383635936,1757052643352,-480.0,0.00013999,2]
[383635937,1757052643363,-480.0,0.00013999,2]
[383635938,1757052643375,-697.83821725,0.00014004,2]
[383635939,1757052643386,-187.78006525,0.00014066,2]
[383635940,1757052643398,-697.83821725,0.00014072,2]
[383635941,1757052643410,-187.24,0.00014158,2]
[383635942,1757052643421,-480.0,0.00014169,2]
[383635943,1757052643432,-1872.38,0.00014169,2]
[383635944,1757052643444,-480.0,0.00014169,2]
[383635945,1757052643456,-487.78,0.00014169,2]
[383635946,1757052643469,-712.06,0.00014169,2]
[383635947,1757052643480,-151.0,0.00014169,2]
[383635948,1757052643492,-151.0,0.00014169,2]
[383635949,1757052643505,-151.0,0.00014169,2]
[383635950,1757052643516,-151.0,0.00014169,2]
[383635951,1757052643527,-151.0,0.00014169,2]
[383635952,1757052643538,-151.0,0.00014169,2]
[383635953,1757052643551,-151.0,0.00014169,2]
[383635954,1757052643562,-151.0,0.00014169,2]
[383635955,1757052643573,-1117.86,0.0001417,2]
[383635956,1757052643584,-480.0,0.0001417,2]
[383635957,1757052643597,-855.77,0.0001417,2]
[383635958,1757052643609,-527.43,0.0001417,2]
[383635959,1757052643620,-480.0,0.0001417,2]
[383635960,1757052643631,-480.0,0.0001417,2]
[383635961,1757052643643,-480.0,0.0001417,2]
[383635962,1757052643654,-480.0,0.0001417,2]
[383635963,1757052643666,-501.21,0.0001417,2]
[383635964,1757052643677,-492.61,0.0001417,2]
[383635965,1757052643688,-480.0,0.0001417,2]
[383635966,1757052643699,-480.0,0.0001417,2]
[383635967,1757052643711,-480.0,0.0001417,2]
[383635968,1757052643721,-480.0,0.0001417,2]
[383635969,1757052643733,-480.0,0.0001417,2]
[383635970,1757052643744,-480.0,0.0001417,2]
[383635971,1757052643755,-635.93,0.0001417,2]
[383635972,1757052643767,-879.6,0.0001417,2]
[383635973,1757052643781,-503.87613142,0.0001417,2]
[383635974,1757052643792,-544.37,0.0001417,2]
[383635975,1757052643803,-1020.17,0.0001417,2]
[383635976,1757052643815,-646.75,0.0001417,2]
[383635977,1757052643826,-480.0,0.0001417,2]
[383635978,1757052643838,-480.0,0.0001417,2]
[383635979,1757052643849,-480.0,0.0001417,2]
[383635980,1757052643860,-480.0,0.0001417,2]
[383635981,1757052643872,-524.19,0.0001417,2]
[383635982,1757052643883,-480.0,0.0001417,2]
[383635983,1757052643894,-540.17,0.0001417,2]
[383635984,1757052643906,-480.0,0.0001417,2]
[383635985,1757052643917,-480.0,0.0001417,2]
[383635986,1757052643929,-480.0,0.0001417,2]
[383635987,1757052643941,-1089.44,0.0001417,2]
[383635988,1757052643953,-1498.17,0.0001417,2]
[383635990,1757052644082,-585.00476031,0.0001417,2]
[383635991,1757052644105,-3222.57,0.0001417,2]
[383635992,1757052644116,-480.0,0.00014171,2]
[383635993,1757052644125,-480.0,0.00014171,2]
[383635994,1757052644134,-480.0,0.00014171,2]
[383635995,1757052644143,-480.0,0.00014171,2]
[383635996,1757052644152,-480.0,0.00014171,2]
[383635997,1757052644162,-480.0,0.00014171,2]
[383635998,1757052644171,-641.57,0.00014171,2]
[383635999,1757052644180,-315.93238982,0.00014171,2]
[383636000,1757052644190,-594.8,0.00014171,2]
[383636001,1757052644199,-215.50172759,0.00014171,2]
[383636002,1757052644208,-480.0,0.00014171,2]
[383636003,1757052644218,-480.0,0.00014171,2]
[383636004,1757052644227,-480.0,0.00014171,2]
[383636005,1757052644236,-480.81,0.00014171,2]
[383636006,1757052644245,-480.0,0.00014171,2]
[383636007,1757052644255,-480.0,0.00014171,2]
[383636008,1757052644264,-480.0,0.00014171,2]
[383636009,1757052644273,-480.0,0.00014171,2]
[383636010,1757052644283,-480.0,0.00014171,2]
[383636011,1757052644292,-480.0,0.00014171,2]
[383636012,1757052644301,-480.0,0.00014171,2]
[383636013,1757052644311,-480.0,0.00014171,2]
[383636014,1757052644320,-480.0,0.00014171,2]
[383636015,1757052644329,-480.0,0.00014171,2]
[383636016,1757052644339,-480.0,0.00014171,2]
[383636017,1757052644348,-480.0,0.00014171,2]
[383636018,1757052644358,-480.0,0.00014171,2]
[383636019,1757052644367,-480.0,0.00014171,2]
[383636020,1757052644376,-480.0,0.00014171,2]
[383636021,1757052644386,-480.0,0.00014171,2]
[383636022,1757052644395,-480.0,0.00014171,2]
[383636023,1757052644405,-480.0,0.00014171,2]
[383636024,1757052644414,-480.0,0.00014171,2]
[383636025,1757052644423,-480.0,0.00014171,2]
[383636026,1757052644433,-480.0,0.00014171,2]
[383636027,1757052644442,-621.56687067,0.00014171,2]
[383636028,1757052644451,-480.0,0.00014171,2]
[383636029,1757052644460,-480.0,0.00014171,2]
[383636030,1757052644469,-480.0,0.00014171,2]
[383636031,1757052644479,-480.0,0.00014171,2]
[383636032,1757052644488,-480.0,0.00014171,2]
[383636033,1757052644497,-480.0,0.00014171,2]
[383636034,1757052644507,-480.0,0.00014171,2]
[383636035,1757052644516,-480.0,0.00014171,2]
[383636036,1757052644525,-549.26,0.00014171,2]
[383636037,1757052644534,-480.0,0.00014171,2]
[383636038,1757052644544,-480.0,0.00014171,2]
[383636039,1757052644553,-480.0,0.00014171,2]
[383636040,1757052644562,-480.0,0.00014171,2]
[383636041,1757052644571,-480.0,0.00014171,2]
[383636042,1757052644581,-480.0,0.00014171,2]
[383636043,1757052644591,-480.0,0.00014171,2]
[383636044,1757052644600,-623.76,0.00014171,2]
[383636045,1757052644610,-1615.43,0.00014171,2]
[383636046,1757052644619,-480.0,0.00014171,2]
[383636047,1757052644629,-894.17,0.00014171,2]
[383636048,1757052644638,-480.0,0.00014171,2]
[383636049,1757052644647,-480.0,0.00014171,2]
[383636050,1757052644657,-480.0,0.00014171,2]
[383636051,1757052644667,-480.0,0.00014171,2]
[383636052,1757052644676,-480.0,0.00014171,2]
[383636053,1757052644685,-2420.52,0.00014171,2]
[383636054,1757052644696,-480.0,0.00014171,2]
[383636055,1757052644705,-810.59,0.00014171,2]
[383636056,1757052644718,-383.80036426,0.00014171,2]
[383636057,1757052644727,-480.0,0.00014171,2]
[383636058,1757052644736,-2655.15,0.00014171,2]
[383636059,1757052644745,-480.0,0.00014171,2]
[383636060,1757052644754,-480.0,0.00014171,2]
[383636061,1757052644763,-480.0,0.00014171,2]
[383636062,1757052644773,-5800.33,0.00014171,2]
[383636063,1757052644787,-1164.67,0.00014171,2]
[383636064,1757052644796,-604.96,0.00014171,2]
[383636065,1757052644805,-780.12,0.00014171,2]
[383636066,1757052644815,-491.67157076,0.00014171,2]
[383636067,1757052644825,-460.63180389,0.00014171,2]
[383636068,1757052644835,-480.0,0.00014171,2]
[383636069,1757052644844,-480.0,0.00014171,2]
[383636070,1757052644855,-480.0,0.00014171,2]
[383636071,1757052644864,-480.0,0.00014171,2]
[383636072,1757052644873,-1106.69,0.00014171,2]
[383636073,1757052644883,-480.0,0.00014171,2]
[383636074,1757052644892,-480.0,0.00014171,2]
[383636075,1757052644901,-480.0,0.00014171,2]
[383636076,1757052644911,-1687.35,0.00014171,2]
[383636077,1757052644920,-480.0,0.00014171,2]
[383636078,1757052644929,-480.0,0.00014171,2]
[383636079,1757052644939,-480.0,0.00014171,2]
[383636080,1757052644950,-530.21,0.00014171,2]
[383636081,1757052644960,-530.21,0.00014171,2]
[383636082,1757052644969,-530.21,0.00014171,2]
[383636083,1757052644981,-530.21,0.00014171,2]
[383636084,1757052644990,-530.37,0.00014171,2]
[383636085,1757052645001,-747.51,0.00014171,2]
[383636086,1757052645010,-480.0,0.00014171,2]
[383636087,1757052645021,-480.0,0.00014171,2]
[383636088,1757052645032,-1121.1,0.00014171,2]
[383636089,1757052645042,-1332.62,0.00014171,2]
[383636090,1757052645052,-546.31,0.00014171,2]
[383636091,1757052645061,-480.0,0.00014171,2]
[383636092,1757052645071,-480.0,0.00014171,2]
[383636093,1757052645080,-480.0,0.00014171,2]
[383636094,1757052645090,-480.0,0.00014171,2]
[383636095,1757052645099,-480.0,0.00014171,2]
[383636096,1757052645109,-480.0,0.00014171,2]
[383636097,1757052645120,-480.0,0.00014171,2]
[383636098,1757052645129,-480.0,0.00014171,2]
[383636099,1757052645140,-480.0,0.00014171,2]
[383636100,1757052645151,-480.0,0.00014171,2]
[383636101,1757052645160,-151.0,0.00014172,2]
[383636102,1757052645171,-151.0,0.00014172,2]
[383636103,1757052645180,-151.0,0.00014172,2]
[383636104,1757052645190,-151.0,0.00014172,2]
[383636105,1757052645201,-151.581267,0.00014172,2]
[383636106,1757052645210,-500.0,0.00014172,2]
[383636107,1757052645221,-151.818724,0.00014258,2]
[383636108,1757052645231,-151.0,0.00014258,2]
[383636109,1757052645240,-151.0,0.00014258,2]
[383636110,1757052645250,-560.494188,0.00014258,2]
[383636111,1757052645260,-560.494188,0.00014258,2]
[383636112,1757052645269,-560.494188,0.00014258,2]
[383636113,1757052645279,-560.494188,0.00014258,2]
[383636114,1757052645288,-151.0,0.00014258,2]
[383636115,1757052645299,-151.0,0.00014258,2]
[383636116,1757052645308,-151.0,0.00014258,2]
[383636117,1757052645318,-151.0,0.00014258,2]
[383636118,1757052645328,-151.0,0.00014258,2]
[383636119,1757052645338,-151.0,0.00014258,2]
[383636120,1757052645348,-285.81913709,0.00014258,2]
[383636121,1757052645357,-151.0,0.00014258,2]
[383636122,1757052645367,-151.0,0.00014258,2]
[383636123,1757052645377,-480.0,0.00014271,2]
[383636124,1757052645387,-480.0,0.00014271,2]
[383636125,1757052645396,-480.0,0.00014271,2]
[383636126,1757052645406,-480.0,0.00014271,2]
[383636127,1757052645416,-480.0,0.00014271,2]
[383636128,1757052645425,-480.0,0.00014271,2]
[383636129,1757052645435,-565.74816236,0.00014271,2]
[383636130,1757052645444,-480.0,0.00014271,2]
[383636131,1757052645454,-480.0,0.00014271,2]
[383636132,1757052645463,-480.0,0.00014271,2]
[383636133,1757052645474,-480.0,0.00014271,2]
[383636134,1757052645483,-480.0,0.00014271,2]
[383636135,1757052645493,-480.0,0.00014271,2]
[383636136,1757052645502,-480.0,0.00014271,2]
[383636137,1757052645511,-480.0,0.00014271,2]
[383636138,1757052645522,-480.0,0.00014271,2]
[383636139,1757052645534,-480.0,0.00014271,2]
[383636140,1757052645543,-480.0,0.00014271,2]
[383636141,1757052645553,-480.0,0.00014271,2]
[383636142,1757052645565,-480.0,0.00014271,2]
[383636143,1757052645575,-480.0,0.00014271,2]